[Event "Titled Tuesday Blitz March 21 Late 2023"]
[White "Maurizzi, Marc`Andria"]
[Black "Prieto Aranguren, Alain"]
[WhiteFideId "36083534"]
[BlackFideId "2268906"]
[WhiteElo "2421"]
[BlackElo "2209"]
[Result "1-0"]
[Round "02"]
[TimeControl "180+2"]
[Date "2023.03.21"]
[WhiteClock "0:02:44"]
[BlackClock "0:01:13"]

1. d4 {[%clk 0:03:00]}  Nf6 {[%clk 0:02:00]} 2. Nf3 {[%clk 0:03:01]}  g6 {[%clk 0:02:00]} 3. g3 {[%clk 0:03:01]}  Bg7 {[%clk 0:02:00]} 4. Bg2 {[%clk 0:03:02]}  O-O {[%clk 0:02:00]} 5. O-O {[%clk 0:03:03]}  d6 {[%clk 0:02:00]} 6. Re1 {[%clk 0:03:02]}  Nc6 {[%clk 0:02:01]} 7. d5 {[%clk 0:03:02]}  Nb8 {[%clk 0:02:00]} 8. e4 {[%clk 0:03:01]}  e5 {[%clk 0:02:01]} 9. dxe6 {[%clk 0:03:01]}  fxe6 {[%clk 0:02:01]} 10. e5 {[%clk 0:03:01]}  Ng4 {[%clk 0:01:53]} 11. exd6 {[%clk 0:02:58]}  cxd6 {[%clk 0:01:53]} 12. h3 {[%clk 0:02:58]}  Ne5 {[%clk 0:01:53]} 13. Nxe5 {[%clk 0:02:59]}  Bxe5 {[%clk 0:01:52]} 14. Nd2 {[%clk 0:03:00]}  Nc6 {[%clk 0:01:51]} 15. Nc4 {[%clk 0:03:00]}  Bd4 {[%clk 0:01:47]} 16. Be3 {[%clk 0:02:57]}  Bxe3 {[%clk 0:01:47]} 17. Rxe3 {[%clk 0:02:58]}  d5 {[%clk 0:01:44]} 18. Nd2 {[%clk 0:02:45]}  Qb6 {[%clk 0:01:43]} 19. Nb3 {[%clk 0:02:45]}  Bd7 {[%clk 0:01:42]} 20. c4 {[%clk 0:02:44]}  d4 {[%clk 0:01:29]} 21. c5 {[%clk 0:02:43]}  Qc7 {[%clk 0:01:24]} 22. Nxd4 {[%clk 0:02:42]}  Nxd4 {[%clk 0:01:21]} 23. Qxd4 {[%clk 0:02:43]}  Rad8 {[%clk 0:01:18]} 24. Qe5 {[%clk 0:02:44]}  Qc8 {[%clk 0:01:16]} 25. Rd1 {[%clk 0:02:43]}  Bc6 {[%clk 0:01:14]} 26. Rxd8 {[%clk 0:02:44]}  Qxd8 {[%clk 0:01:13]} 27. Qxe6+ {[%clk 0:02:44]}  Kg7 {[%clk 0:01:14]} 28. Bxc6 {[%clk 0:02:44]}  bxc6 {[%clk 0:01:13]} 29. Qe7+ {[%clk 0:02:44]} 1-0


[Site "https://www.chess.com"]

[Event "Titled Tuesday Blitz March 21 Late 2023"]
[White "Jimenez, Joaquin"]
[Black "Escanor89"]
[WhiteFideId "109860"]
[WhiteElo "2163"]
[BlackElo "2496"]
[Result "0-1"]
[Round "02"]
[TimeControl "180+2"]
[Date "2023.03.21"]
[WhiteClock "0:00:09"]
[BlackClock "0:00:15"]

1. e4 {[%clk 0:03:00]}  c5 {[%clk 0:02:57]} 2. Nf3 {[%clk 0:03:00]}  e6 {[%clk 0:02:57]} 3. d4 {[%clk 0:03:00]}  cxd4 {[%clk 0:02:57]} 4. Nxd4 {[%clk 0:03:01]}  Nf6 {[%clk 0:02:57]} 5. Nc3 {[%clk 0:03:01]}  Nc6 {[%clk 0:02:57]} 6. Ndb5 {[%clk 0:03:01]}  Bc5 {[%clk 0:02:56]} 7. Nd6+ {[%clk 0:02:54]}  Ke7 {[%clk 0:02:55]} 8. Bf4 {[%clk 0:02:51]}  e5 {[%clk 0:02:53]} 9. Nf5+ {[%clk 0:02:51]}  Kf8 {[%clk 0:02:53]} 10. Bg5 {[%clk 0:02:48]}  Bb4 {[%clk 0:02:45]} 11. Bc4 {[%clk 0:02:37]}  d5 {[%clk 0:02:31]} 12. Bxd5 {[%clk 0:02:31]}  Bxf5 {[%clk 0:02:03]} 13. Bxf6 {[%clk 0:02:30]}  Qxf6 {[%clk 0:01:57]} 14. exf5 {[%clk 0:02:30]}  Rd8 {[%clk 0:01:54]} 15. O-O {[%clk 0:02:25]}  Ne7 {[%clk 0:01:38]} 16. Ne4 {[%clk 0:02:08]}  Qxf5 {[%clk 0:01:37]} 17. Ng3 {[%clk 0:02:03]}  Qf4 {[%clk 0:01:05]} 18. c4 {[%clk 0:01:54]}  h5 {[%clk 0:01:05]} 19. Qb3 {[%clk 0:01:37]}  Nxd5 {[%clk 0:00:54]} 20. cxd5 {[%clk 0:01:35]}  h4 {[%clk 0:00:51]} 21. Ne2 {[%clk 0:01:35]}  Qe4 {[%clk 0:00:50]} 22. Nc3 {[%clk 0:01:27]}  Bxc3 {[%clk 0:00:45]} 23. bxc3 {[%clk 0:01:26]}  h3 {[%clk 0:00:43]} 24. Qb4+ {[%clk 0:01:13]}  Qxb4 {[%clk 0:00:42]} 25. cxb4 {[%clk 0:01:14]}  hxg2 {[%clk 0:00:41]} 26. Kxg2 {[%clk 0:01:13]}  Rxd5 {[%clk 0:00:41]} 27. Rac1 {[%clk 0:01:13]}  g6 {[%clk 0:00:34]} 28. Rc7 {[%clk 0:01:11]}  Rb5 {[%clk 0:00:33]} 29. a3 {[%clk 0:01:11]}  Rh4 {[%clk 0:00:32]} 30. Rd1 {[%clk 0:01:09]}  Rf4 {[%clk 0:00:31]} 31. Rdd7 {[%clk 0:01:05]}  e4 {[%clk 0:00:25]} 32. h4 {[%clk 0:00:48]}  Rbf5 {[%clk 0:00:23]} 33. Rxb7 {[%clk 0:00:45]}  Rxf2+ {[%clk 0:00:22]} 34. Kg3 {[%clk 0:00:45]}  R2f3+ {[%clk 0:00:22]} 35. Kg4 {[%clk 0:00:43]}  Kg7 {[%clk 0:00:20]} 36. Re7 {[%clk 0:00:34]}  e3 {[%clk 0:00:20]} 37. a4 {[%clk 0:00:26]}  Kh6 {[%clk 0:00:18]} 38. Re4 {[%clk 0:00:11]}  e2 {[%clk 0:00:19]} 39. h5 {[%clk 0:00:10]}  e1=Q {[%clk 0:00:15]} 40. Rxe1 {[%clk 0:00:09]}  R5f4# {[%clk 0:00:15]} 0-1


[Site "https://www.chess.com"]

[Event "Titled Tuesday Blitz March 21 Late 2023"]
[White "Tsyhanchuk, Stanislav"]
[Black "Kozin, Yuri"]
[WhiteFideId "13505130"]
[BlackFideId "4129920"]
[WhiteElo "2173"]
[BlackElo "2495"]
[Result "0-1"]
[Round "02"]
[TimeControl "180+2"]
[Date "2023.03.21"]
[WhiteClock "0:00:03"]
[BlackClock "0:00:14"]

1. e4 {[%clk 0:02:56]}  c5 {[%clk 0:02:59]} 2. Nf3 {[%clk 0:02:55]}  e6 {[%clk 0:02:59]} 3. Nc3 {[%clk 0:02:55]}  d6 {[%clk 0:02:59]} 4. d4 {[%clk 0:02:55]}  cxd4 {[%clk 0:03:00]} 5. Nxd4 {[%clk 0:02:56]}  Nf6 {[%clk 0:03:00]} 6. Be2 {[%clk 0:02:57]}  Be7 {[%clk 0:03:00]} 7. O-O {[%clk 0:02:57]}  a6 {[%clk 0:03:00]} 8. f4 {[%clk 0:02:57]}  O-O {[%clk 0:03:01]} 9. Be3 {[%clk 0:02:56]}  Nc6 {[%clk 0:03:00]} 10. g4 {[%clk 0:02:57]}  Nxd4 {[%clk 0:02:58]} 11. Bxd4 {[%clk 0:02:55]}  Qc7 {[%clk 0:02:59]} 12. g5 {[%clk 0:02:54]}  Nd7 {[%clk 0:02:38]} 13. h4 {[%clk 0:02:54]}  b5 {[%clk 0:02:37]} 14. f5 {[%clk 0:02:51]}  b4 {[%clk 0:02:30]} 15. Na4 {[%clk 0:02:50]}  e5 {[%clk 0:02:24]} 16. Be3 {[%clk 0:02:47]}  Re8 {[%clk 0:02:22]} 17. b3 {[%clk 0:02:44]}  Bb7 {[%clk 0:02:22]} 18. Bf3 {[%clk 0:02:43]}  Bf8 {[%clk 0:02:18]} 19. h5 {[%clk 0:02:27]}  d5 {[%clk 0:02:14]} 20. exd5 {[%clk 0:02:26]}  e4 {[%clk 0:02:14]} 21. Bg2 {[%clk 0:02:26]}  Nc5 {[%clk 0:02:03]} 22. g6 {[%clk 0:01:40]}  Nxa4 {[%clk 0:01:56]} 23. bxa4 {[%clk 0:01:37]}  Qg3 {[%clk 0:01:35]} 24. Bf2 {[%clk 0:01:29]}  Qg5 {[%clk 0:01:25]} 25. Qd4 {[%clk 0:01:20]}  e3 {[%clk 0:01:16]} 26. Bh4 {[%clk 0:01:14]}  Qxh5 {[%clk 0:00:51]} 27. Bf3 {[%clk 0:01:06]}  Qxf5 {[%clk 0:00:47]} 28. gxf7+ {[%clk 0:01:06]}  Qxf7 {[%clk 0:00:46]} 29. Rae1 {[%clk 0:00:49]}  Rac8 {[%clk 0:00:44]} 30. Bg4 {[%clk 0:00:43]}  Qg6 {[%clk 0:00:44]} 31. Kh1 {[%clk 0:00:43]}  Re4 {[%clk 0:00:39]} 32. Be6+ {[%clk 0:00:18]}  Rxe6 {[%clk 0:00:37]} 33. Qf4 {[%clk 0:00:07]}  Bxd5+ {[%clk 0:00:35]} 34. Rf3 {[%clk 0:00:06]}  Bxf3+ {[%clk 0:00:30]} 35. Qxf3 {[%clk 0:00:06]}  Rxc2 {[%clk 0:00:29]} 36. Rf1 {[%clk 0:00:05]}  Rc8 {[%clk 0:00:26]} 37. Qd5 {[%clk 0:00:05]}  Qh6 {[%clk 0:00:23]} 38. Rf4 {[%clk 0:00:01]}  e2 {[%clk 0:00:22]} 39. Re4 {[%clk 0:00:01]}  Qxh4+ {[%clk 0:00:19]} 40. Rxh4 {[%clk 0:00:02]}  e1=Q+ {[%clk 0:00:19]} 41. Kg2 {[%clk 0:00:02]}  Rc2+ {[%clk 0:00:16]} 42. Kf3 {[%clk 0:00:03]}  Rf2+ {[%clk 0:00:15]} 43. Kg4 {[%clk 0:00:04]}  Qg1+ {[%clk 0:00:14]} 44. Kh5 {[%clk 0:00:03]}  Qg6# {[%clk 0:00:14]} 0-1


[Site "https://www.chess.com"]

[Event "Titled Tuesday Blitz March 21 Late 2023"]
[White "Urbina Perez, Juan Antonio"]
[Black "Einarsson, Halldor Gretar"]
[WhiteFideId "2217368"]
[BlackFideId "2300150"]
[WhiteElo "2197"]
[BlackElo "2142"]
[Result "1-0"]
[Round "02"]
[TimeControl "180+2"]
[Date "2023.03.21"]
[WhiteClock "0:00:53"]
[BlackClock "0:00:02"]

1. c4 {[%clk 0:03:00]}  c5 {[%clk 0:02:58]} 2. Nf3 {[%clk 0:02:59]}  Nf6 {[%clk 0:02:57]} 3. g3 {[%clk 0:03:00]}  g6 {[%clk 0:02:55]} 4. Bg2 {[%clk 0:03:01]}  Bg7 {[%clk 0:02:56]} 5. O-O {[%clk 0:03:02]}  O-O {[%clk 0:02:56]} 6. Nc3 {[%clk 0:03:03]}  Nc6 {[%clk 0:02:56]} 7. Rb1 {[%clk 0:03:04]}  d5 {[%clk 0:02:52]} 8. cxd5 {[%clk 0:03:00]}  Nxd5 {[%clk 0:02:52]} 9. Nxd5 {[%clk 0:02:58]}  Qxd5 {[%clk 0:02:52]} 10. a3 {[%clk 0:02:54]}  Bf5 {[%clk 0:02:36]} 11. d3 {[%clk 0:02:52]}  Qd7 {[%clk 0:02:33]} 12. Qc2 {[%clk 0:02:47]}  Rac8 {[%clk 0:02:31]} 13. Re1 {[%clk 0:02:34]}  b6 {[%clk 0:01:48]} 14. Qa4 {[%clk 0:02:29]}  Bh3 {[%clk 0:01:27]} 15. Bh1 {[%clk 0:02:27]}  Rfd8 {[%clk 0:01:27]} 16. Be3 {[%clk 0:02:22]}  h5 {[%clk 0:01:15]} 17. b4 {[%clk 0:02:19]}  cxb4 {[%clk 0:01:00]} 18. axb4 {[%clk 0:02:20]}  Bc3 {[%clk 0:01:00]} 19. Bd2 {[%clk 0:02:09]}  Nd4 {[%clk 0:00:50]} 20. Qxd7 {[%clk 0:02:03]}  Rxd7 {[%clk 0:00:35]} 21. Bxc3 {[%clk 0:01:53]}  Rxc3 {[%clk 0:00:34]} 22. Nxd4 {[%clk 0:01:53]}  Rxd4 {[%clk 0:00:33]} 23. f4 {[%clk 0:01:51]}  Rc2 {[%clk 0:00:23]} 24. Bf3 {[%clk 0:01:49]}  Ra2 {[%clk 0:00:18]} 25. Kf2 {[%clk 0:01:47]}  Rxd3 {[%clk 0:00:17]} 26. Ra1 {[%clk 0:01:43]}  Rxa1 {[%clk 0:00:16]} 27. Rxa1 {[%clk 0:01:41]}  Rd7 {[%clk 0:00:17]} 28. Rc1 {[%clk 0:01:32]}  Be6 {[%clk 0:00:16]} 29. Ke3 {[%clk 0:01:32]}  b5 {[%clk 0:00:15]} 30. Rc5 {[%clk 0:01:28]}  Bc4 {[%clk 0:00:15]} 31. Bc6 {[%clk 0:01:27]}  Rd6 {[%clk 0:00:15]} 32. Bxb5 {[%clk 0:01:27]}  Re6+ {[%clk 0:00:15]} 33. Kd4 {[%clk 0:01:20]}  Bxe2 {[%clk 0:00:13]} 34. Rc8+ {[%clk 0:01:13]}  Kg7 {[%clk 0:00:13]} 35. Be8 {[%clk 0:01:13]}  Rb6 {[%clk 0:00:12]} 36. Kc3 {[%clk 0:01:12]}  Bg4 {[%clk 0:00:11]} 37. Rc7 {[%clk 0:01:12]}  Be6 {[%clk 0:00:10]} 38. Ba4 {[%clk 0:01:07]}  a6 {[%clk 0:00:09]} 39. Rxe7 {[%clk 0:01:07]}  Kf6 {[%clk 0:00:09]} 40. Rc7 {[%clk 0:01:06]}  Rd6 {[%clk 0:00:10]} 41. Rc5 {[%clk 0:01:04]}  Bf5 {[%clk 0:00:08]} 42. Bb3 {[%clk 0:01:03]}  Rd3+ {[%clk 0:00:08]} 43. Kb2 {[%clk 0:01:01]}  Rd2+ {[%clk 0:00:08]} 44. Kc3 {[%clk 0:01:01]}  Rxh2 {[%clk 0:00:08]} 45. Rc6+ {[%clk 0:01:01]}  Kg7 {[%clk 0:00:08]} 46. Rxa6 {[%clk 0:01:01]}  Rg2 {[%clk 0:00:07]} 47. Ra7 {[%clk 0:01:01]}  Rxg3+ {[%clk 0:00:07]} 48. Kb2 {[%clk 0:01:02]}  Rg2+ {[%clk 0:00:07]} 49. Kc3 {[%clk 0:01:00]}  Rg3+ {[%clk 0:00:07]} 50. Kb2 {[%clk 0:01:00]}  Rg2+ {[%clk 0:00:07]} 51. Ka3 {[%clk 0:01:01]}  Rg3 {[%clk 0:00:07]} 52. Ka4 {[%clk 0:00:57]}  h4 {[%clk 0:00:06]} 53. Bxf7 {[%clk 0:00:56]}  Kh6 {[%clk 0:00:03]} 54. Bd5 {[%clk 0:00:54]}  h3 {[%clk 0:00:03]} 55. b5 {[%clk 0:00:54]}  Rg4 {[%clk 0:00:02]} 56. b6 {[%clk 0:00:53]}  Rxf4+ {[%clk 0:00:02]} 57. Ka5 {[%clk 0:00:53]} 1-0


[Site "https://www.chess.com"]

[Event "Titled Tuesday Blitz March 21 Late 2023"]
[White "Todev, Simeon"]
[Black "Sztokbant, Bernardo Vainzoff"]
[WhiteFideId "2925133"]
[BlackFideId "2115956"]
[WhiteElo "1938"]
[BlackElo "2222"]
[Result "0-1"]
[Round "02"]
[TimeControl "180+2"]
[Date "2023.03.21"]
[WhiteClock "0:00:03"]
[BlackClock "0:00:34"]

1. e4 {[%clk 0:02:59]}  c5 {[%clk 0:02:57]} 2. Nf3 {[%clk 0:02:58]}  d6 {[%clk 0:02:56]} 3. c3 {[%clk 0:02:59]}  Nf6 {[%clk 0:02:56]} 4. Bd3 {[%clk 0:02:59]}  g6 {[%clk 0:02:54]} 5. Bc2 {[%clk 0:02:43]}  Bg7 {[%clk 0:02:54]} 6. O-O {[%clk 0:02:43]}  O-O {[%clk 0:02:54]} 7. d4 {[%clk 0:02:42]}  Nc6 {[%clk 0:02:49]} 8. Re1 {[%clk 0:02:38]}  cxd4 {[%clk 0:02:47]} 9. cxd4 {[%clk 0:02:38]}  Bg4 {[%clk 0:02:48]} 10. Be3 {[%clk 0:02:38]}  Nd7 {[%clk 0:02:43]} 11. Nc3 {[%clk 0:02:30]}  Rc8 {[%clk 0:02:40]} 12. Ba4 {[%clk 0:02:27]}  Qa5 {[%clk 0:02:34]} 13. Bxc6 {[%clk 0:02:23]}  bxc6 {[%clk 0:02:29]} 14. h3 {[%clk 0:02:21]}  Bxf3 {[%clk 0:02:28]} 15. Qxf3 {[%clk 0:02:21]}  Rb8 {[%clk 0:02:22]} 16. e5 {[%clk 0:02:11]}  dxe5 {[%clk 0:02:21]} 17. Qxc6 {[%clk 0:02:11]}  exd4 {[%clk 0:02:21]} 18. Bxd4 {[%clk 0:02:03]}  Bxd4 {[%clk 0:02:19]} 19. Qxd7 {[%clk 0:02:03]}  Qb6 {[%clk 0:02:09]} 20. Re2 {[%clk 0:01:18]}  e6 {[%clk 0:02:03]} 21. Ne4 {[%clk 0:00:59]}  Rfd8 {[%clk 0:01:52]} 22. Qe7 {[%clk 0:00:50]}  Qb5 {[%clk 0:01:45]} 23. Rd2 {[%clk 0:00:41]}  Qe5 {[%clk 0:01:40]} 24. Re1 {[%clk 0:00:34]}  Kg7 {[%clk 0:01:32]} 25. Rde2 {[%clk 0:00:27]}  Qd5 {[%clk 0:01:21]} 26. Ng5 {[%clk 0:00:21]}  Rd7 {[%clk 0:01:17]} 27. Nxe6+ {[%clk 0:00:16]}  Kg8 {[%clk 0:01:08]} 28. Qh4 {[%clk 0:00:07]}  fxe6 {[%clk 0:01:06]} 29. Rxe6 {[%clk 0:00:07]}  Rf8 {[%clk 0:01:02]} 30. Re8 {[%clk 0:00:05]}  Rf7 {[%clk 0:00:59]} 31. Rxf8+ {[%clk 0:00:05]}  Rxf8 {[%clk 0:01:00]} 32. Re2 {[%clk 0:00:04]}  Qc4 {[%clk 0:00:51]} 33. Rd2 {[%clk 0:00:04]}  Qc1+ {[%clk 0:00:48]} 34. Kh2 {[%clk 0:00:03]}  Qxd2 {[%clk 0:00:48]} 35. Qe4 {[%clk 0:00:03]}  Qxf2 {[%clk 0:00:45]} 36. Qe6+ {[%clk 0:00:03]}  Kg7 {[%clk 0:00:45]} 37. Qd7+ {[%clk 0:00:02]}  Rf7 {[%clk 0:00:45]} 38. Qd5 {[%clk 0:00:02]}  Qf4+ {[%clk 0:00:44]} 39. Kh1 {[%clk 0:00:02]}  Qf1+ {[%clk 0:00:37]} 40. Kh2 {[%clk 0:00:03]}  Bg1+ {[%clk 0:00:34]} 41. Kg3 {[%clk 0:00:03]}  Qf4# {[%clk 0:00:34]} 0-1


[Site "https://www.chess.com"]

[Event "Titled Tuesday Blitz March 21 Late 2023"]
[White "Astafurov, Arseniy"]
[Black "Albuquerque Junior,Wellington S."]
[WhiteFideId "24175218"]
[BlackFideId "2151480"]
[WhiteElo "2163"]
[BlackElo "2109"]
[Result "1-0"]
[Round "02"]
[TimeControl "180+2"]
[Date "2023.03.21"]
[WhiteClock "0:00:03"]
[BlackClock "0:00:01"]

1. c4 {[%clk 0:02:59]}  Nf6 {[%clk 0:02:59]} 2. Nc3 {[%clk 0:02:59]}  c5 {[%clk 0:02:59]} 3. Nf3 {[%clk 0:02:59]}  g6 {[%clk 0:02:59]} 4. e3 {[%clk 0:02:59]}  Bg7 {[%clk 0:02:59]} 5. d4 {[%clk 0:03:00]}  cxd4 {[%clk 0:03:00]} 6. exd4 {[%clk 0:03:01]}  d5 {[%clk 0:03:01]} 7. Qb3 {[%clk 0:03:01]}  dxc4 {[%clk 0:02:57]} 8. Bxc4 {[%clk 0:03:02]}  O-O {[%clk 0:02:57]} 9. Ne5 {[%clk 0:03:02]}  e6 {[%clk 0:02:54]} 10. Be3 {[%clk 0:03:00]}  Nbd7 {[%clk 0:02:36]} 11. Nxf7 {[%clk 0:02:17]}  Rxf7 {[%clk 0:02:27]} 12. Bxe6 {[%clk 0:02:17]}  Qe7 {[%clk 0:02:24]} 13. O-O {[%clk 0:02:11]}  Nb6 {[%clk 0:02:21]} 14. Bxf7+ {[%clk 0:02:10]}  Qxf7 {[%clk 0:02:21]} 15. d5 {[%clk 0:01:32]}  Nbxd5 {[%clk 0:02:15]} 16. Rad1 {[%clk 0:01:26]}  Nxe3 {[%clk 0:02:03]} 17. Rd8+ {[%clk 0:01:22]}  Bf8 {[%clk 0:01:55]} 18. fxe3 {[%clk 0:01:15]}  Qxb3 {[%clk 0:01:54]} 19. axb3 {[%clk 0:01:16]}  Nd7 {[%clk 0:01:40]} 20. Nd5 {[%clk 0:01:02]}  Kg7 {[%clk 0:01:38]} 21. b4 {[%clk 0:00:37]}  Bd6 {[%clk 0:01:28]} 22. Rc1 {[%clk 0:00:33]}  Nb6 {[%clk 0:01:14]} 23. Rxd6 {[%clk 0:00:23]}  Nxd5 {[%clk 0:01:06]} 24. Rxd5 {[%clk 0:00:23]}  Bf5 {[%clk 0:01:06]} 25. Rc7+ {[%clk 0:00:23]}  Kh6 {[%clk 0:01:07]} 26. Re5 {[%clk 0:00:19]}  Rd8 {[%clk 0:00:49]} 27. Rxb7 {[%clk 0:00:19]}  Rd1+ {[%clk 0:00:49]} 28. Kf2 {[%clk 0:00:19]}  Rd2+ {[%clk 0:00:50]} 29. Kg3 {[%clk 0:00:20]}  Rxb2 {[%clk 0:00:51]} 30. Ree7 {[%clk 0:00:19]}  Kg5 {[%clk 0:00:51]} 31. h4+ {[%clk 0:00:19]}  Kf6 {[%clk 0:00:51]} 32. e4 {[%clk 0:00:17]}  Bc8 {[%clk 0:00:48]} 33. Kf4 {[%clk 0:00:14]}  Rf2+ {[%clk 0:00:47]} 34. Ke3 {[%clk 0:00:14]}  Rxg2 {[%clk 0:00:45]} 35. Rf7+ {[%clk 0:00:11]}  Ke6 {[%clk 0:00:42]} 36. Rbe7+ {[%clk 0:00:11]}  Kd6 {[%clk 0:00:42]} 37. e5+ {[%clk 0:00:12]}  Kd5 {[%clk 0:00:39]} 38. Rc7 {[%clk 0:00:10]}  Bf5 {[%clk 0:00:37]} 39. Rxh7 {[%clk 0:00:09]}  Kxe5 {[%clk 0:00:36]} 40. Rxa7 {[%clk 0:00:08]}  Rg3+ {[%clk 0:00:35]} 41. Kf2 {[%clk 0:00:09]}  Rb3 {[%clk 0:00:35]} 42. Rab7 {[%clk 0:00:09]}  Kf4 {[%clk 0:00:35]} 43. Ke2 {[%clk 0:00:09]}  Rb2+ {[%clk 0:00:31]} 44. Kd1 {[%clk 0:00:09]}  Kg4 {[%clk 0:00:19]} 45. b5 {[%clk 0:00:09]}  Be4 {[%clk 0:00:19]} 46. Rb8 {[%clk 0:00:08]}  Bf3+ {[%clk 0:00:15]} 47. Kc1 {[%clk 0:00:08]}  Rb4 {[%clk 0:00:15]} 48. b6 {[%clk 0:00:08]}  Kf4 {[%clk 0:00:14]} 49. b7 {[%clk 0:00:07]}  Kg4 {[%clk 0:00:14]} 50. Kc2 {[%clk 0:00:05]}  Rb6 {[%clk 0:00:13]} 51. Kc3 {[%clk 0:00:05]}  Kg3 {[%clk 0:00:10]} 52. Kc4 {[%clk 0:00:04]}  Rb1 {[%clk 0:00:10]} 53. Kc5 {[%clk 0:00:04]}  Rc1+ {[%clk 0:00:08]} 54. Kd4 {[%clk 0:00:04]}  Rd1+ {[%clk 0:00:08]} 55. Ke5 {[%clk 0:00:05]}  Rb1 {[%clk 0:00:07]} 56. Rg7 {[%clk 0:00:04]}  Rb5+ {[%clk 0:00:07]} 57. Kd4 {[%clk 0:00:04]}  Rb6 {[%clk 0:00:07]} 58. Kc5 {[%clk 0:00:02]}  Rb1 {[%clk 0:00:07]} 59. Rbg8 {[%clk 0:00:02]}  Kxh4 {[%clk 0:00:04]} 60. b8=Q {[%clk 0:00:02]}  Rc1+ {[%clk 0:00:01]} 61. Kd4 {[%clk 0:00:03]} 1-0


[Site "https://www.chess.com"]

[Event "Titled Tuesday Blitz March 21 Late 2023"]
[White "Harish, Neeraj"]
[Black "Kaplan, Avi Harrison"]
[WhiteFideId "30958130"]
[BlackFideId "30934559"]
[WhiteElo "1963"]
[BlackElo "1983"]
[Result "0-1"]
[Round "02"]
[TimeControl "180+2"]
[Date "2023.03.21"]
[WhiteClock "0:00:21"]
[BlackClock "0:00:33"]

1. e4 {[%clk 0:03:00]}  Nc6 {[%clk 0:02:44]} 2. Nf3 {[%clk 0:02:59]}  Nf6 {[%clk 0:02:41]} 3. e5 {[%clk 0:02:48]}  Nd5 {[%clk 0:02:38]} 4. d4 {[%clk 0:02:37]}  d6 {[%clk 0:02:36]} 5. c4 {[%clk 0:02:36]}  Nb6 {[%clk 0:02:35]} 6. exd6 {[%clk 0:02:27]}  exd6 {[%clk 0:02:29]} 7. Be3 {[%clk 0:02:22]}  Bg4 {[%clk 0:02:27]} 8. Be2 {[%clk 0:02:22]}  Be7 {[%clk 0:02:27]} 9. O-O {[%clk 0:02:22]}  O-O {[%clk 0:02:27]} 10. h3 {[%clk 0:02:21]}  Bh5 {[%clk 0:02:24]} 11. Nc3 {[%clk 0:02:20]}  d5 {[%clk 0:02:22]} 12. c5 {[%clk 0:02:17]}  Nc8 {[%clk 0:02:12]} 13. Qb3 {[%clk 0:02:07]}  b6 {[%clk 0:01:44]} 14. Nxd5 {[%clk 0:01:51]}  Na5 {[%clk 0:01:37]} 15. Nxe7+ {[%clk 0:01:48]}  Nxe7 {[%clk 0:01:37]} 16. Qc2 {[%clk 0:01:42]}  Bg6 {[%clk 0:01:34]} 17. Qd2 {[%clk 0:01:34]}  Nd5 {[%clk 0:01:19]} 18. b4 {[%clk 0:01:29]}  Nc6 {[%clk 0:01:18]} 19. b5 {[%clk 0:01:27]}  Nce7 {[%clk 0:01:13]} 20. Rfd1 {[%clk 0:01:20]}  Nf5 {[%clk 0:01:12]} 21. c6 {[%clk 0:01:12]}  Re8 {[%clk 0:01:08]} 22. Bf4 {[%clk 0:01:09]}  Nxf4 {[%clk 0:01:00]} 23. Qxf4 {[%clk 0:01:06]}  Rxe2 {[%clk 0:00:59]} 24. Re1 {[%clk 0:01:02]}  Rxe1+ {[%clk 0:00:53]} 25. Rxe1 {[%clk 0:01:03]}  Qd6 {[%clk 0:00:51]} 26. Qxd6 {[%clk 0:00:59]}  Nxd6 {[%clk 0:00:52]} 27. Re7 {[%clk 0:00:49]}  Nxb5 {[%clk 0:00:48]} 28. a4 {[%clk 0:00:49]}  Nc3 {[%clk 0:00:43]} 29. Rxc7 {[%clk 0:00:48]}  Be4 {[%clk 0:00:40]} 30. Ne5 {[%clk 0:00:45]}  Ne2+ {[%clk 0:00:39]} 31. Kf1 {[%clk 0:00:45]}  Nxd4 {[%clk 0:00:40]} 32. Nxf7 {[%clk 0:00:22]}  Bxc6 {[%clk 0:00:34]} 33. Ne5 {[%clk 0:00:21]}  Bxa4 {[%clk 0:00:33]} 0-1


[Site "https://www.chess.com"]